bitfinex-derivatives/quotes_SOLF0:USTF0_20250714
["timestamp","ask_amount","ask_price","bid_price","bid_amount"]
[1752508235801,1.46,163.98,163.92,3.36]
[1752508236408,6.0976,163.96,163.92,3.36]
[1752508237306,6.0973,163.97,163.92,9.4589]
[1752508237608,7.6407895,164.0,163.93,3.36]
[1752508237811,1.46,164.02,163.94,3.36]
[1752508237812,7.63862992,164.01,163.94,3.36]
[1752508238406,7.63862992,164.02,163.95,3.36]
[1752508238610,720.8,164.08,163.83,819.81108304]
[1752508238611,1.46,163.99,163.9,3.36]
[1752508239018,6.0973,163.97,163.93,3.36]
[1752508239219,7.63862992,164.0,163.93,3.36]
[1752508239415,6.0971,163.98,163.93,9.4585]
[1752508239615,7.63862992,164.0,163.94,3.36]
[1752508240118,1.46,164.01,163.96,3.36]
[1752508240317,9.09862992,164.04,163.96,3.36]
[1752508240617,9.09862992,164.04,163.9,7.63862992]
[1752508240618,9.09862992,164.04,163.98,3.36]
[1752508241317,1.46,164.04,163.96,3.36]
[1752508241515,9.09862992,164.06,163.96,3.36]
[1752508241818,9.09862992,164.06,163.98,3.36]
[1752508242324,6.0953,164.02,163.98,3.36]
[1752508242721,6.0961,164.0,163.98,3.36]
[1752508242919,6.0961,164.0,163.99,3.36]
[1752508243125,7.63862992,164.0,163.92,9.4587]
[1752508243421,6.097,163.98,163.92,3.36]
[1752508243823,6.0973,163.97,163.94,3.36]
[1752508244223,1.46,164.01,163.94,3.36]
[1752508244421,7.63862992,164.0,163.94,3.36]
[1752508244617,1.46,163.99,163.94,3.36]
[1752508244923,1.46,163.97,163.89,3.36]
[1752508245223,9.09862992,163.99,163.91,6.0991]
[1752508245423,6.0977,163.96,163.92,3.36]
[1752508245922,9.09862992,163.99,163.92,3.36]
[1752508246123,1.46,163.99,163.92,3.36]
[1752508246325,9.09862992,163.99,163.92,3.36]
[1752508246621,6.0981,163.95,163.92,3.36]
[1752508247324,4.97611129,164.06,163.83,816.4051317]
[1752508247325,9.09862992,164.03,163.95,3.36]
[1752508247630,1.46,164.03,163.95,3.36]
[1752508247822,1.46,164.06,163.96,7.63862992]
[1752508248022,7.63862992,164.02,163.97,3.36]
[1752508248218,6.0967,163.98,163.97,3.36]
[1752508248422,9.09862992,164.0,163.91,7.63862992]
[1752508248623,9.09862992,164.0,163.92,3.36]
[1752508249128,1.46,163.99,163.92,3.36]
[1752508249721,7.63862992,163.98,163.92,3.36]
[1752508249919,1.46,163.95,163.9,3.36]
[1752508250127,7.63862992,163.96,163.92,3.36]
[1752508250128,6.0986,163.93,163.92,3.36]
[1752508250427,7.63862992,163.97,163.87,3.36]
[1752508250619,7.63862992,163.97,163.9,3.36]
[1752508250819,1.46,163.96,163.88,3.36]
[1752508251325,1.46,163.96,163.89,3.36]
[1752508251526,9.09862992,163.95,163.86,3.36]
[1752508251726,1.46,163.94,163.86,3.36]
[1752508252325,1.46,163.94,163.88,3.36]
[1752508252925,1.46,163.94,163.89,3.36]
[1752508253229,1.46,163.94,163.91,3.36]
[1752508253426,1.46,163.93,163.87,3.36]
[1752508253826,6.1003,163.89,163.87,3.36]
[1752508254022,9.09862992,163.93,163.83,94.10541296]
[1752508254023,7.63862992,163.93,163.83,94.10541296]
[1752508254329,1.46,163.92,163.89,3.36]
[1752508254531,9.09862992,163.95,163.85,7.63862992]
[1752508254724,9.09862992,163.95,163.86,3.36]
[1752508255025,6.0992,163.92,163.87,6.1006]
[1752508255331,6.0992,163.92,163.88,3.36]
[1752508255630,9.09862992,163.95,163.88,3.36]
[1752508255631,6.0987,163.93,163.88,3.36]
[1752508255926,9.09862992,163.95,163.88,3.36]
[1752508256127,1.46,163.95,163.88,3.36]
[1752508256328,9.09862992,163.95,163.88,3.36]
[1752508256529,6.0997,163.91,163.88,3.36]
[1752508256726,1.46,163.94,163.89,3.36]
[1752508256923,1.46,163.93,163.89,3.36]
[1752508257139,6.0997,163.9,163.89,3.36]
[1752508257433,6.0997,163.9,163.83,86.46678304]
[1752508257434,1.46,163.91,163.83,94.10541296]
[1752508257639,6.1,163.9,163.89,3.36]
[1752508258235,6.101,163.87,163.79,199.57223244]
[1752508258536,6.101,163.87,163.82,7.63862992]
[1752508258841,7.63862992,163.91,163.85,3.36]
[1752508259040,1.46,163.92,163.85,3.36]
[1752508259444,7.63862992,163.91,163.85,3.36]
[1752508259639,9.09862992,163.91,163.85,3.36]
[1752508260035,1.46,163.91,163.84,3.36]
[1752508260440,7.63862992,163.94,163.84,10.99862992]
[1752508260640,7.63862992,163.94,163.85,3.52]
[1752508260844,9.09862992,163.95,163.85,3.52]
[1752508261048,1.46,163.94,163.86,6.1011]
[1752508261235,1.46,163.94,163.87,3.52]
[1752508261645,1.46,163.96,163.88,3.52]
[1752508262344,9.09862992,163.96,163.88,3.52]
[1752508262546,1.46,163.95,163.88,3.52]
[1752508262746,205.8521,164.0,163.88,3.52]
[1752508262747,1.46,163.93,163.88,3.52]
[1752508262946,1.46,163.93,163.84,3.52]
[1752508263150,6.0984,163.94,163.88,3.52]
[1752508263345,1.46,163.96,163.88,3.52]
[1752508263545,1.46,163.97,163.88,3.52]
[1752508263843,6.0984,163.94,163.9,6.0997]
[1752508264145,1.46,163.97,163.91,3.52]
[1752508264542,7.63862992,163.98,163.91,3.52]
[1752508264746,1.46,163.97,163.91,3.52]
[1752508264944,6.0984,163.94,163.92,3.52]
[1752508265244,9.09862992,164.0,163.91,7.63862992]
[1752508265447,9.09862992,164.0,163.93,3.52]
[1752508265640,1.46,164.0,163.93,3.52]
[1752508265838,1.46,164.0,163.94,3.52]
[1752508266049,1.46,164.0,163.95,3.52]
[1752508266251,1.46,164.02,163.95,3.52]
[1752508266547,1.46,163.99,163.91,3.52]
[1752508266751,7.63862992,164.02,163.91,7.63862992]
[1752508266945,6.0966,163.99,163.94,3.52]
[1752508267144,1.46,164.02,163.94,3.52]
[1752508267546,1.46,164.02,163.93,7.63862992]
[1752508267547,6.0962,164.0,163.96,3.52]
[1752508267746,1.46,164.02,163.96,3.52]
[1752508268248,7.63862992,163.99,163.94,3.52]
[1752508268450,9.09862992,163.99,163.94,3.52]
[1752508268650,6.0974,163.97,163.94,3.52]
[1752508268846,9.09862992,163.99,163.91,3.52]
[1752508269044,6.0969,163.98,163.91,3.52]
[1752508269652,6.03750758,164.07,163.96,3.52]
[1752508269653,9.09862992,164.03,163.96,3.52]
[1752508270153,6.0964,163.99,163.96,3.52]
[1752508271252,6.0971,163.97,163.92,12.7486723]
[1752508271548,9.09862992,164.01,163.92,5.11004238]
[1752508271750,6.0969,163.98,163.93,8.63004238]
[1752508271950,9.09862992,164.01,163.93,3.52]
[1752508272253,7.63862992,163.99,163.94,3.52]
[1752508272448,1.46,164.0,163.94,3.52]
[1752508273054,6.0964,163.99,163.95,3.52]
[1752508273253,9.09862992,164.02,163.95,3.52]
[1752508273450,9.09862992,164.04,163.97,3.52]
[1752508273651,7.63862992,164.05,163.97,3.52]
[1752508274056,6.0958,164.01,163.97,6.097]
[1752508274250,1.46,164.04,163.95,7.63862992]
[1752508274251,1.46,164.04,163.98,3.52]
[1752508274548,9.09862992,164.07,163.98,3.52]
[1752508274857,1.46,164.06,163.98,3.52]
[1752508275056,6.0948,164.04,164.0,3.52]
[1752508275655,1.46,164.06,164.0,3.52]
[1752508276457,7.63862992,164.03,164.0,3.52]
[1752508276655,6.0956,164.01,164.0,3.52]
[1752508277654,7.63862992,164.01,163.93,5.11004238]
[1752508277850,9.09862992,163.99,163.93,5.11004238]
[1752508278053,7.63862992,163.95,163.92,5.11004238]
[1752508278352,9.09862992,163.93,163.91,5.11004238]
[1752508278551,1.46,163.92,163.89,8.63004238]
[1752508278756,6.0997,163.9,163.89,3.52]
[1752508279152,1.46,163.9,163.87,3.52]
[1752508279353,1.46,163.9,163.88,3.52]
[1752508279557,7.63862992,163.91,163.88,3.52]
[1752508279757,6.1001,163.89,163.88,3.52]
[1752508280062,1.46,163.97,163.85,3.52]
[1752508280252,7.63862992,163.95,163.86,7.63862992]
[1752508280558,1.46,163.96,163.88,3.52]
[1752508280859,6.0981,163.95,163.9,6.0995]
[1752508281051,6.0981,163.95,163.91,3.52]
[1752508281253,528.38,163.98,163.91,3.52]
[1752508281755,7.63862992,163.97,163.91,3.52]
[1752508282147,6.0984,163.94,163.91,3.52]
[1752508282347,7.63862992,163.97,163.91,3.52]
[1752508282545,7.63862992,163.97,163.88,3.52]
[1752508282758,7.63862992,163.95,163.88,3.52]
[1752508283054,7.63862992,163.93,163.88,3.52]
[1752508283257,6.0998,163.9,163.85,12.75148227]
[1752508283553,9.09862992,163.93,163.85,5.11285235]
[1752508283750,6.1007,163.88,163.86,3.52]
[1752508283950,43.05846179,164.0,163.81,5.11285235]
[1752508283951,9.09862992,163.89,163.81,5.11285235]
[1752508284156,1.46,163.88,163.85,3.52]
[1752508284356,6.1012,163.86,163.85,3.52]
[1752508284951,6.1012,163.86,163.79,726.15862992]
[1752508284952,7.63862992,163.87,163.79,526.92]
[1752508285353,7.63862992,163.87,163.8,3.52]
[1752508285552,7.63862992,163.89,163.8,3.52]
[1752508285758,1.46,163.88,163.8,3.52]
[1752508286552,7.63862992,163.87,163.8,3.52]
[1752508286755,9.09862992,163.87,163.8,3.52]
[1752508287661,7.63862992,163.89,163.8,3.52]
[1752508288062,6.1011,163.87,163.81,6.1028]
[1752508288362,7.63862992,163.89,163.82,3.52]
[1752508288857,1.46,163.93,163.85,7.63862992]
[1752508289055,9.09862992,163.95,163.86,3.52]
[1752508289259,7.63862992,163.93,163.86,3.52]
[1752508289460,1.46,163.92,163.86,3.52]
[1752508289656,6.1004,163.89,163.86,3.52]
[1752508290160,6.1008,163.87,163.86,3.52]
[1752508290464,9.09862992,163.87,163.84,3.52]
[1752508290658,7.63862992,163.89,163.85,3.32]
[1752508290960,6.1015,163.86,163.85,3.32]
[1752508291156,1.46,163.88,163.85,3.32]
[1752508291352,6.1008,163.87,163.86,3.32]
[1752508291552,1.46,163.88,163.81,6.1027]
[1752508291553,1.46,163.88,163.84,3.32]
[1752508291754,6.1009,163.87,163.78,12.75148227]
[1752508291960,6.1009,163.87,163.86,3.32]
[1752508292653,6.1005,163.88,163.81,3.32]
[1752508293161,7.63862992,163.82,163.79,5.11285235]
[1752508293358,1.46,163.81,163.74,5.11285235]
[1752508293558,1.46,163.81,163.75,3.32]
[1752508293754,1.46,163.81,163.71,533.79223244]
[1752508293755,6.1043,163.78,163.72,5.11285235]
[1752508293955,1.46,163.79,163.73,3.32]
[1752508294156,25.85862992,163.9,163.73,3.32]
[1752508294157,7.63862992,163.76,163.73,3.32]
[1752508294364,7.63862992,163.76,163.74,3.32]
[1752508294562,9.09862992,163.77,163.74,3.32]
[1752508294859,7.63862992,163.79,163.73,3.32]
[1752508295258,6.1045,163.78,163.73,3.32]
[1752508295562,6.1045,163.78,163.64,6.69223244]
[1752508295563,7.63862992,163.75,163.72,3.32]
[1752508295860,7.63862992,163.8,163.68,3.32]
[1752508295861,1.46,163.72,163.68,3.32]
[1752508296163,1.46,163.72,163.66,3.32]
[1752508296562,7.63862992,163.73,163.66,3.32]
[1752508296963,13.74492992,163.73,163.66,3.32]
[1752508297155,7.63862992,163.79,163.69,7.63862992]
[1752508297361,1.46,163.79,163.7,3.32]
[1752508297564,1.46,163.79,163.65,193.26]
[1752508297758,1.46,163.79,163.71,3.32]
[1752508297963,6.105,163.76,163.71,3.32]
[1752508298366,1.46,163.79,163.71,3.32]
[1752508299070,1.46,163.83,163.76,7.63862992]
[1752508299270,6.1024,163.83,163.79,3.32]
[1752508299566,1.46,163.86,163.79,3.32]
[1752508299765,1.46,163.85,163.79,3.32]
[1752508299967,1.46,163.83,163.77,3.32]
[1752508300162,1.46,163.81,163.67,198.09285235]
[1752508300358,1.46,163.81,163.73,3.32]
[1752508301068,1.46,163.79,163.67,3.32]
[1752508301275,1.46,163.75,163.67,3.32]
[1752508301979,9.09862992,163.75,163.67,3.32]
[1752508302270,9.09862992,163.74,163.65,3.32]
[1752508302474,1.46,163.74,163.67,3.32]
[1752508302681,6.1075,163.7,163.67,3.32]
[1752508302979,1.46,163.73,163.67,3.32]
[1752508303180,6.1074,163.7,163.67,3.32]
[1752508303375,6.1074,163.7,163.64,7.63862992]
[1752508303577,6.1074,163.7,163.65,3.32]
[1752508303881,1.46,163.72,163.62,3.32]
[1752508304272,6.1083,163.67,163.62,3.32]
[1752508304476,7.63862992,163.71,163.62,7.63862992]
[1752508304673,7.63862992,163.71,163.63,3.32]
[1752508305183,1.46,163.71,163.63,3.32]
[1752508305384,6.1091,163.65,163.63,3.32]
[1752508305579,1.46,163.71,163.63,3.32]
[1752508305985,11.74688513,163.72,163.6,3.32]
[1752508305986,1.46,163.68,163.6,3.32]
[1752508306175,11.74688513,163.72,163.6,3.32]
[1752508306176,1.46,163.71,163.6,3.32]
[1752508306478,1.46,163.71,163.61,6.1105]
[1752508306684,1.46,163.71,163.62,3.32]
[1752508307083,6.1088,163.66,163.62,3.32]
[1752508307281,1.46,163.69,163.62,3.32]
[1752508307982,1.46,163.71,163.62,3.32]
[1752508308179,1.46,163.73,163.65,3.32]
[1752508308582,1.46,163.69,163.65,3.32]
[1752508308886,1.46,163.67,163.59,3.32]
[1752508309492,6.1097,163.64,163.59,3.32]
[1752508309884,1.46,163.67,163.59,3.32]
[1752508310187,1.46,163.67,163.59,6.1113]
[1752508310385,1.46,163.67,163.6,3.32]
[1752508310786,6.1097,163.64,163.6,3.32]
[1752508310989,1.46,163.67,163.6,3.32]
[1752508311281,13.20688513,163.7,163.6,9.4309]
[1752508311486,13.20688513,163.7,163.61,3.32]
[1752508311683,1.46,163.7,163.61,3.32]
[1752508312478,1.46,163.72,163.62,3.32]
[1752508313284,13.20688513,163.72,163.62,3.32]
[1752508313479,1.46,163.71,163.62,3.32]
[1752508314388,1.46,163.7,163.62,3.32]
[1752508314682,1.46,163.68,163.62,3.32]
[1752508315284,1.46,163.65,163.5,3.32]
[1752508315584,1.46,163.65,163.5,1.06394362]
[1752508315790,11.74688513,163.7,163.57,11.74688513]
[1752508315990,1.46,163.69,163.58,3.32]
[1752508316593,1.46,163.72,163.61,3.32]
[1752508316791,1.46,163.72,163.63,11.74688513]
[1752508316991,1.46,163.72,163.64,3.32]
[1752508317191,6.1091,163.66,163.64,3.32]
[1752508317392,1.46,163.72,163.65,3.32]
[1752508317785,1.46,163.72,163.56,192.6]
[1752508317786,539.48688513,163.73,163.59,17.85798513]
[1752508317986,1.46,163.68,163.62,3.32]
[1752508318392,1.46,163.71,163.62,3.32]
[1752508318785,1.46,163.71,163.62,6.1101]
[1752508318990,1.46,163.71,163.63,3.32]
[1752508319392,13.20688513,163.69,163.61,3.32]
[1752508319691,1.46,163.69,163.61,3.32]
[1752508320090,11.7518097,163.67,163.54,3.32]
[1752508320299,1.46,163.62,163.51,3.32]
[1752508320487,6.1112,163.6,163.55,6.1126]
[1752508320691,1.48,163.66,163.55,11.7518097]
[1752508320889,1.48,163.66,163.56,3.47]
[1752508321291,1.48,163.63,163.52,3.47]
[1752508322089,207.3518097,163.68,163.53,3.47]
[1752508322090,1.48,163.62,163.53,3.47]
[1752508322391,1.48,163.6,163.53,3.47]
[1752508323196,1.48,163.6,163.49,3.47]
[1752508323496,527.96,163.64,163.49,3.47]
[1752508323497,1.48,163.58,163.49,3.47]
[1752508323690,1.48,163.58,163.5,3.47]
[1752508324293,1.48,163.56,163.5,3.47]
[1752508324487,1.48,163.56,163.48,3.47]
[1752508324893,1.48,163.58,163.5,3.47]
[1752508325094,1.48,163.58,163.5,8.52047423]
[1752508325295,1.48,163.58,163.52,3.47]
[1752508325491,1.48,163.61,163.53,3.47]
[1752508325695,527.96,163.64,163.54,3.47]
[1752508325889,195.7,163.67,163.57,3.47]
[1752508326088,195.7,163.67,163.6,3.47]
[1752508326493,195.7,163.67,163.61,6.1103]
[1752508326697,195.7,163.67,163.63,3.47]
[1752508326900,195.7,163.67,163.57,11.7518097]
[1752508327194,195.7,163.67,163.61,3.47]
[1752508327794,195.7,163.67,163.58,11.7518097]
[1752508327795,6.1094,163.65,163.59,6.1111]
[1752508327995,195.7,163.67,163.6,3.47]
[1752508328395,6.1094,163.65,163.6,6.1108]
[1752508328698,195.7,163.67,163.61,3.47]
[1752508328890,1.48,163.68,163.63,3.47]
[1752508329093,1.48,163.68,163.58,11.7518097]
[1752508329094,1.48,163.68,163.64,3.47]
[1752508329294,1.48,163.67,163.64,3.47]
[1752508329491,1.48,163.67,163.59,11.7518097]
[1752508329695,1.48,163.69,163.62,3.47]
[1752508329897,1.48,163.66,163.59,3.47]
[1752508330398,6.111,163.6,163.59,3.47]
[1752508330597,1.48,163.63,163.56,3.47]
[1752508331102,207.1718097,163.64,163.54,3.47]
[1752508331300,1.48,163.58,163.54,3.47]
[1752508331498,1.48,163.58,163.55,3.47]
[1752508331698,1.48,163.58,163.52,3.47]
[1752508332202,1.48,163.62,163.55,3.47]
[1752508332401,196.72,163.62,163.55,3.47]
[1752508332702,1.48,163.61,163.55,3.47]
[1752508332903,1.48,163.61,163.49,16.80228393]
[1752508333092,11.7518097,163.62,163.49,11.7518097]
[1752508333293,1.48,163.61,163.5,3.47]
[1752508333696,1.48,163.58,163.51,3.47]
[1752508334305,1.48,163.58,163.52,3.47]
[1752508334505,1.48,163.58,163.46,3.47]
[1752508334804,1.48,163.58,163.5,3.47]
[1752508335206,6.1142,163.52,163.5,3.47]
[1752508335606,11.7518097,163.59,163.51,3.47]
[1752508335906,1.48,163.61,163.46,3.47]
[1752508336095,1.48,163.59,163.46,3.47]
[1752508336301,1.48,163.51,163.48,3.47]
[1752508336606,11.7518097,163.57,163.42,528.08]
[1752508336809,1.48,163.53,163.47,3.47]
[1752508337009,1.48,163.56,163.47,3.47]
[1752508337414,1.48,163.56,163.41,3.47]
[1752508337614,1.48,163.5,163.42,11.7518097]
[1752508337799,1.48,163.53,163.47,3.47]
[1752508338004,529.7,163.55,163.47,3.47]
[1752508338207,1.48,163.54,163.47,3.47]
[1752508338709,1.48,163.54,163.42,11.7518097]
[1752508338710,1.48,163.54,163.38,3.47]
[1752508338904,6.1159,163.47,163.41,3.47]
[1752508339104,1.48,163.5,163.41,3.47]
[1752508339305,6.1157,163.48,163.43,6.1171]
[1752508339506,1.48,163.5,163.44,3.47]
[1752508339707,1.48,163.53,163.44,3.47]
[1752508340310,6.1165,163.46,163.44,3.47]
[1752508340511,1.48,163.51,163.44,3.47]
[1752508341412,6.1166,163.45,163.44,3.47]
[1752508341607,528.22,163.55,163.35,3.47]
[1752508341608,1.48,163.44,163.35,3.47]
[1752508342411,1.48,163.44,163.31,3.47]
[1752508342706,1.48,163.44,163.34,3.47]
[1752508342909,6.118,163.42,163.38,6.1189]
[1752508343105,1.48,163.45,163.34,3.47]
[1752508343307,1.48,163.44,163.34,3.47]
[1752508343505,1.48,163.44,163.35,3.47]
[1752508343506,11.78709059,163.42,163.35,3.47]
[1752508343702,1.48,163.41,163.31,3.47]
[1752508344003,1.48,163.44,163.35,3.47]
[1752508344203,528.44,163.45,163.35,15.25709059]
[1752508344409,11.78709059,163.49,163.36,3.47]
[1752508344612,13.26709059,163.49,163.4,3.47]
[1752508344812,1.48,163.47,163.4,3.47]
[1752508345006,201.96,163.5,163.27,5.05047423]
[1752508345007,3.45,163.41,163.27,5.05047423]
[1752508345206,3.45,163.41,163.26,5.05047423]
[1752508345406,3.45,163.41,163.33,11.78428104]
[1752508345607,11.78428104,163.4,163.27,11.78428104]
[1752508345809,11.78428104,163.43,163.25,5.05047423]
[1752508346015,11.78428104,163.43,163.26,5.05047423]
[1752508346016,6.1184,163.41,163.26,5.05047423]
[1752508346315,3.45,163.42,163.31,11.78428104]
[1752508346610,3.45,163.41,163.27,528.52]
[1752508346811,3.45,163.41,163.28,11.78428104]
[1752508347015,11.78428104,163.38,163.26,3.47]
[1752508347312,3.45,163.37,163.26,3.47]
[1752508347809,3.45,163.36,163.3,3.47]
[1752508348013,3.45,163.34,163.26,3.47]
[1752508348209,3.45,163.31,163.26,3.47]
[1752508348405,3.45,163.29,163.19,5.05047423]
[1752508348713,3.45,163.29,163.27,3.47]
[1752508348916,15.23428104,163.33,163.27,3.47]
[1752508349208,15.23428104,163.35,163.29,3.47]
[1752508349919,11.78428104,163.32,163.21,3.47]
[1752508350111,11.78428104,163.3,163.21,3.47]
[1752508350415,3.45,163.3,163.22,11.78428104]
[1752508350609,3.63,163.34,163.24,3.61]
[1752508350805,3.63,163.33,163.3,3.61]
[1752508351010,3.63,163.35,163.26,3.61]
[1752508351308,3.63,163.33,163.3,3.61]
[1752508351504,3.63,163.33,163.27,3.61]
[1752508351708,3.63,163.31,163.28,3.61]
[1752508351905,11.33054238,163.33,163.29,3.61]
[1752508352111,732.36,163.42,163.3,3.61]
[1752508352308,3.63,163.41,163.27,3.61]
[1752508352606,3.63,163.37,163.28,7.70054238]
[1752508352811,3.63,163.37,163.29,3.61]
[1752508353217,3.63,163.37,163.3,3.61]
[1752508353418,11.33054238,163.39,163.3,3.61]
[1752508353918,3.63,163.39,163.3,3.61]
[1752508354314,3.63,163.39,163.35,6.1203]
[1752508354511,3.63,163.39,163.33,3.61]
[1752508354712,7.70054238,163.38,163.22,5.05047423]
[1752508354916,528.52,163.42,163.35,6.1202]
[1752508354917,3.63,163.37,163.35,6.1202]
[1752508355117,3.63,163.38,163.28,7.70054238]
[1752508355312,3.63,163.38,163.29,3.61]
[1752508355515,3.63,163.36,163.33,3.61]
[1752508355717,7.70054238,163.37,163.26,7.70054238]
[1752508356015,528.52,163.42,163.27,3.61]
[1752508356016,3.63,163.34,163.27,3.61]
[1752508356418,3.63,163.34,163.27,11.31054238]
[1752508356618,3.63,163.34,163.31,9.7315]
[1752508356818,3.63,163.34,163.32,3.61]
[1752508357316,7.70054238,163.35,163.25,7.70054238]
[1752508357521,7.70054238,163.35,163.26,3.61]
[1752508357722,3.63,163.35,163.27,3.61]
[1752508357921,3.63,163.35,163.29,3.61]
[1752508358321,3.63,163.37,163.29,3.61]
[1752508358521,3.63,163.37,163.3,3.61]
[1752508359323,3.63,163.37,163.2,12.75101661]
[1752508359324,3.63,163.37,163.31,3.61]
[1752508359524,7.70054238,163.36,163.31,3.61]
[1752508359821,7.70054238,163.36,163.2,7.70054238]
[1752508359822,7.70054238,163.36,163.26,3.61]
[1752508360018,11.33054238,163.36,163.28,3.61]
[1752508360216,3.63,163.35,163.28,3.61]
[1752508361527,3.63,163.37,163.29,3.61]
[1752508362133,11.33054238,163.37,163.31,9.7318]
[1752508362424,17.45044238,163.37,163.31,9.7318]
[1752508362622,11.33054238,163.37,163.31,9.7318]
[1752508362828,3.63,163.36,163.2,3.61]
[1752508363026,3.63,163.36,163.28,7.70054238]
[1752508363229,3.63,163.39,163.31,3.61]
[1752508363917,3.63,163.37,163.34,9.7307]
[1752508364127,3.63,163.37,163.34,3.61]
[1752508364626,7.70054238,163.36,163.32,3.61]
[1752508364818,7.70054238,163.34,163.29,3.61]
[1752508365021,3.63,163.33,163.31,3.61]
[1752508365931,3.63,163.33,163.26,7.70054238]
[1752508366123,3.63,163.33,163.27,3.61]
[1752508367024,528.52,163.42,163.27,3.61]
[1752508367227,3.63,163.35,163.27,3.61]
[1752508368229,3.63,163.35,163.31,3.61]
[1752508368430,3.63,163.35,163.32,3.61]
[1752508368727,206.34,163.4,163.21,3.61]
[1752508368728,7.70054238,163.34,163.21,3.61]
[1752508368922,3.63,163.33,163.25,7.70054238]
[1752508369124,3.63,163.33,163.26,3.61]
[1752508369732,3.63,163.33,163.19,3.61]
[1752508369928,3.63,163.29,163.22,3.61]
[1752508370321,7.70054238,163.3,163.14,529.0]
[1752508370322,3.63,163.32,163.23,7.70054238]
[1752508370521,3.63,163.32,163.26,3.61]
[1752508370824,3.63,163.34,163.29,6.1223]
[1752508371024,3.63,163.34,163.27,7.70054238]
[1752508371229,3.63,163.34,163.28,3.61]
[1752508371526,3.63,163.34,163.3,6.122]
[1752508371730,11.33054238,163.37,163.31,3.61]
[1752508372031,17.45044238,163.37,163.31,9.7316]
[1752508372232,11.33054238,163.37,163.31,9.7316]
[1752508372431,3.63,163.36,163.29,7.70054238]
[1752508372635,3.63,163.39,163.35,6.1202]
[1752508372831,3.63,163.39,163.37,3.61]
[1752508373228,3.63,163.42,163.33,7.70054238]
[1752508373423,3.63,163.42,163.34,3.61]
[1752508373628,139.28762635,163.43,163.37,6.1196]
[1752508373835,3.63,163.41,163.33,7.69277266]
[1752508374029,3.63,163.41,163.39,3.61]
[1752508374228,6.1177,163.42,163.37,9.7295]
[1752508374434,3.63,163.4,163.37,3.61]
[1752508374739,3.63,163.4,163.34,3.61]
[1752508375029,133.17012635,163.43,163.34,3.61]
[1752508375231,135.22485369,163.43,163.35,7.69277266]
[1752508375535,129.10735369,163.43,163.36,3.61]
[1752508375938,3.63,163.43,163.36,3.61]
[1752508376132,3.63,163.43,163.37,3.61]
[1752508376332,3.63,163.43,163.39,6.1192]
[1752508376636,3.63,163.43,163.3,7.69277266]